fUSD/lending_fUSD_20240910
["ID","MTS","AMOUNT","RATE_DAILY","PERIOD"]
[337713917,1725985831695,-239.46,0.000122,2]
[337713918,1725985831706,-206.0,0.0001221,2]
[337713919,1725985831716,-24259.84437134,0.0001221,2]
[337713920,1725985831726,-165.875381,0.00012263,2]
[337713921,1725985831736,-150.0,0.00012342,2]
[337713922,1725985831965,-799.826,0.00012343,2]
[337713923,1725985831975,-1921.0,0.00012343,2]
[337713924,1725985831984,-1119.0,0.00012343,2]
[337713925,1725985831993,-9309.0,0.00012343,2]
[337713926,1725985832002,-150.0,0.00012343,2]
[337713927,1725985832011,-1145.0,0.00012343,2]
[337713928,1725985832021,-165.875381,0.00012411,2]
[337713929,1725985832031,-206.0,0.0001242,2]
[337713930,1725985832042,-409.01,0.0001242,2]
[337713931,1725985832052,-300.24,0.000125,2]
[337713932,1725985832062,-1012.42,0.000125,2]
[337713933,1725985832072,-3727.77,0.0001257,2]
[337713934,1725985832087,-609.0,0.000126,2]
[337713935,1725985832099,-427.66,0.000126,2]
[337713936,1725985832108,-150.0,0.000126,2]
[337713937,1725985832117,-150.0,0.000126,2]
[337713938,1725985832126,-150.0,0.000126,2]
[337713939,1725985832135,-300.0,0.000126,2]
[337713940,1725985832144,-150.0,0.000126,2]
[337713941,1725985832153,-150.0,0.000126,2]
[337713942,1725985832163,-150.0,0.000126,2]
[337713943,1725985832172,-427.66,0.000126,2]
[337713944,1725985832181,-427.66,0.000126,2]
[337713945,1725985832191,-150.0,0.000126,2]
[337713946,1725985832200,-150.0,0.000126,2]
[337713947,1725985832209,-150.0,0.000126,2]
[337713948,1725985832218,-427.66,0.000126,2]
[337713949,1725985832227,-150.0,0.000126,2]
[337713950,1725985832236,-150.0,0.000126,2]
[337713951,1725985832245,-427.16,0.000126,2]
[337713952,1725985832254,-150.0,0.000126,2]
[337713953,1725985832263,-150.0,0.000126,2]
[337713954,1725985832273,-206.0,0.0001263,2]
[337713955,1725985832283,-974.0,0.00012741,2]
[337713956,1725985832293,-6498.0575,0.000128,2]
[337713957,1725985832303,-41095.4708,0.000128,2]
[337713958,1725985832312,-3185.36322628,0.000128,2]
[337713959,1725985832322,-157.84,0.00012819,2]
[337713960,1725985832334,-206.0,0.0001284,2]
[337713961,1725985832343,-1095.82087,0.0001287,2]
[337713962,1725985832352,-500.0,0.00012877,2]
[337713963,1725985832361,-1000.0,0.000129,2]
[337713964,1725985832370,-4237.7306,0.000129,2]
[337713965,1725985832379,-86395.0675,0.000129,2]
[337713966,1725985832388,-5976.1879,0.000129,2]
[337713967,1725985832398,-500.0,0.000129,2]
[337713968,1725985832407,-7500.0,0.000129,2]
[337713969,1725985832416,-1020.22840842,0.000129,2]
[337713970,1725985832425,-154.23,0.0001299,2]
[337713971,1725985832434,-154.23,0.0001299,2]
[337713972,1725985832446,-154.23,0.0001299,2]
[337713973,1725985832455,-154.23,0.0001299,2]
[337713974,1725985832465,-154.23,0.0001299,2]
[337713975,1725985832474,-154.23,0.0001299,2]
[337713976,1725985832483,-154.23,0.0001299,2]
[337713977,1725985832492,-154.23,0.0001299,2]
[337713978,1725985832501,-154.23,0.0001299,2]
[337713979,1725985832510,-154.23,0.0001299,2]
[337713980,1725985832522,-154.23,0.0001299,2]
[337713981,1725985832532,-154.23,0.0001299,2]
[337713982,1725985832541,-154.23,0.0001299,2]
[337713983,1725985832549,-154.23,0.0001299,2]
[337713984,1725985832558,-154.23,0.0001299,2]
[337713985,1725985832568,-154.23,0.0001299,2]
[337713986,1725985832579,-154.23,0.0001299,2]
[337713987,1725985832588,-154.23,0.0001299,2]
[337713988,1725985832597,-154.23,0.0001299,2]
[337713989,1725985832608,-154.23,0.0001299,2]
[337713990,1725985832617,-154.23,0.0001299,2]
[337713991,1725985832626,-154.23,0.0001299,2]
[337713992,1725985832635,-216.74872697,0.0001299,2]
[337713993,1725985832644,-660.0,0.00013,2]
[337713994,1725985832653,-24927.49394283,0.00013,2]
[337713998,1725985837465,-1458.4,0.00013,2]
[337713999,1725985837476,-1500.0,0.00013,2]
[337714000,1725985837488,-27789.840896,0.00013,2]
[337714001,1725985837499,-255.53745705,0.00013,2]
[337714002,1725985837690,-4803.4560431,0.00013,2]
[337714003,1725985837701,-2589.73187169,0.00013,2]
[337714004,1725985837748,-683.52597038,0.00013,2]
[337714168,1725985839517,-1079.0,0.00012339,2]
[337714171,1725985839528,-27334.12954961,0.00013,2]
[337714487,1725985842921,-720.70825157,0.00013,2]
[337714715,1725985845629,-133597.90879292,0.00013,2]
[337714717,1725985845638,-592.0,0.00013,2]
[337714718,1725985845647,-391260.57067891,0.00013,2]
[337714719,1725985848090,472.79547438,0.00011821,2]
[337714724,1725986130769,152.56,0.00010237,2]
[337715111,1725986223858,750.0,0.00011,2]
[337715113,1725986416614,180.8,0.00011988,2]
[337715114,1725986439999,211.83,0.00010959,2]
[337715115,1725986654537,154.83,0.0001008,2]
[337715118,1725986719605,250.0,0.00011959,2]
[337715125,1725986940014,156.68,0.00010959,2]
[337715126,1725987003948,162.61,0.00011995,2]
[337715136,1725987031580,-251.06,0.00012006,2]
[337715138,1725987031590,-220.36,0.00012006,2]
[337715140,1725987031599,-180.8,0.00012006,2]
[337715142,1725987031608,-154.66,0.00012085,2]
[337715144,1725987031618,-389.63343163,0.00012087,2]
[337715153,1725987031693,-1742.99277999,0.00012087,2]
[337715155,1725987031703,-223.0,0.00012087,2]
[337715157,1725987031712,-888.60872001,0.00012129,2]
[337715159,1725987031723,-111.39127999,0.00012129,2]
[337715160,1725987031732,-1833.9,0.00012143,2]
[337715161,1725987031741,-187.33493163,0.000122,2]
[337715209,1725987037726,-28.17506837,0.000122,2]
[337715210,1725987037735,-154.83,0.00012344,2]
[337715211,1725987037745,-150.0,0.00012438,2]
[337715212,1725987037754,-285.0,0.00012438,2]
[337715213,1725987037763,-300.0,0.00012438,2]
[337715214,1725987037772,-297.76,0.00012439,2]
[337715215,1725987037781,-1119.0,0.00012439,2]
[337715216,1725987037790,-499.99,0.00012439,2]
[337715217,1725987037800,-1912.0,0.00012439,2]
[337715218,1725987037809,-416.24493162,0.00012439,2]
[337715219,1725987037821,-785.78700674,0.00012439,2]
[337715353,1725987039208,-8106.96806164,0.00012439,2]
[337715355,1725987039218,-1145.0,0.00012439,2]
[337715357,1725987039227,-174.28,0.00012439,2]
[337715359,1725987039237,-150.0,0.00012439,2]
[337715361,1725987039246,-150.99,0.00012439,2]
[337715363,1725987039255,-1079.0,0.00012439,2]
[337715365,1725987039265,-3714.67,0.00012449,2]
[337715367,1725987039274,-306.68,0.000125,2]
[337715369,1725987039283,-1013.54,0.000125,2]
[337715371,1725987039292,-152.0,0.00012577,3]
[337715373,1725987039302,-913.18406,0.0001287,2]
[337715375,1725987039322,-500.0,0.00012877,2]
[337715377,1725987039331,-381.1059,0.000129,2]
[337715379,1725987039341,-577.0052,0.000129,2]
[337715381,1725987039350,-782.95,0.000129,2]
[337715383,1725987039359,-6512.86,0.000129,2]
[337715385,1725987039369,-300.0,0.000129,2]
[337715387,1725987039378,-150.89,0.000129,2]
[337715389,1725987039388,-3128.39149257,0.000129,2]
[337715391,1725987039397,-29999.99999801,0.00012998,2]
[337715393,1725987039407,-1226.934708,0.00012998,2]
[337715395,1725987039416,-13301.1839904,0.00012998,2]
[337715397,1725987039425,-1734.3531862,0.00012998,2]
[337715399,1725987039435,-530.0,0.00013,2]
[337715400,1725987039445,-199585.27448767,0.00013,2]
[337715402,1725987039455,-1432382.16478634,0.00013,2]
[337715404,1725987039464,-297.31063033,0.00013,2]
[337715407,1725987039474,-703099.1956691,0.00013,2]
[337715409,1725987039484,-333296.18029404,0.00013,2]
[337715424,1725987039618,-1789.08360229,0.00013,2]
[337715426,1725987039629,-541.62794,0.00013,2]
[337715438,1725987039732,-1617.67094003,0.00013,2]
[337715440,1725987039743,-1171.35088397,0.00013,2]
[337715442,1725987039754,-300.0,0.00013,2]
[337715699,1725987043200,-20464.29,0.00013,2]
[337715700,1725987043212,-273.20557687,0.00013,2]
[337715701,1725987043227,-14521.78405893,0.00013,2]
[337715702,1725987043238,-1353.68528166,0.00013,2]
[337715703,1725987043253,-548.79774281,0.00013,2]
[337715704,1725987043265,-4232.38357331,0.00013,2]
[337715705,1725987043276,-942.316296,0.00013,2]
[337715706,1725987043287,-18386.04645497,0.00013,2]
[337715707,1725987043299,-730.07140233,0.00013,2]
[337715708,1725987043311,-652.62529538,0.00013,2]
[337715709,1725987043322,-562.6023957,0.00013,2]
[337715721,1725987045629,-943.31862009,0.00013,2]
[337715722,1725987045641,-1874.06416438,0.00013,2]
[337715723,1725987045688,-11450.0,0.00013,2]
[337715724,1725987045699,-734.01641473,0.00013,2]
[337715725,1725987045710,-5784.84070337,0.00013,2]
[337715726,1725987045721,-2610.19070253,0.00013,2]
[337715727,1725987045753,-7792.04006788,0.00013,2]
[337715728,1725987045764,-1996.88135758,0.00013,2]
[337715729,1725987045775,-14599.27129953,0.00013,2]
[337715730,1725987045816,-812.74759037,0.00013,2]
[337715731,1725987045831,-635.39287192,0.00013,2]
[337715732,1725987045842,-3929.113636,0.00013,2]
[337715733,1725987045853,-743.3523116,0.00013,2]
[337715734,1725987045894,-588.94,0.00013,2]
[337715735,1725987045928,-3145.66036694,0.00013,2]
[337715736,1725987045939,-528.14883548,0.00013,2]
[337715737,1725987046800,1246.469632,0.0001182,2]
[337715738,1725987047074,1246.469632,0.00011968,2]
[337719644,1725987091884,240.55611355,0.00010265,2]
[337721241,1725987108399,16001.270534,0.0001182,2]
[337721272,1725987108695,16001.270534,0.00011968,2]
[337723060,1725987198073,156.56,0.00010356,2]
[337723063,1725987417005,1073.301799,0.00012002,2]
[337723064,1725987444705,-150.0,0.00015559,120]
[337723065,1725987444744,-150.0,0.00016377,120]
[337723066,1725987444782,-150.0,0.00016523,120]
[337723067,1725987444823,-150.0,0.00016617,120]
[337723068,1725987444863,-150.0,0.00017082,120]
[337723069,1725987444903,-150.0,0.00017437,120]
[337723070,1725987444940,-150.0,0.00017614,120]
[337723071,1725987444978,-150.0,0.00017672,120]
[337723072,1725987445019,-150.0,0.0001812,120]
[337723073,1725987445054,-150.0,0.00018173,120]
[337723074,1725987445111,-150.0,0.00020263,120]
[337723075,1725987445148,-150.0,0.00020627,120]
[337723076,1725987445186,-150.0,0.00021429,120]
[337723077,1725987445225,-150.0,0.00022266,120]
[337723078,1725987445260,-150.0,0.00022829,120]
[337723079,1725987445294,-150.0,0.00022878,120]
[337723080,1725987445333,-150.0,0.00023594,120]
[337723081,1725987445370,-150.0,0.00024303,120]
[337723082,1725987445409,-150.0,0.00024323,120]
[337723083,1725987445449,-150.0,0.00025138,120]
[337723084,1725987445486,-150.0,0.00025378,120]
[337723085,1725987445521,-6363.05976155,0.00026,120]
[337723086,1725987445555,-500.0,0.00026,60]
[337723087,1725987445592,-500.0,0.00026,60]
[337723088,1725987445631,-500.0,0.00026,60]
[337723089,1725987445666,-498.95515556,0.00026,60]
[337723090,1725987445702,-500.0,0.00026,60]
[337723091,1725987445738,-500.0,0.00026,60]
[337723092,1725987445774,-500.0,0.00026,60]
[337723093,1725987445809,-500.0,0.00026,60]
[337723094,1725987445844,-500.0,0.00026,60]
[337723095,1725987445880,-500.0,0.00026,60]
[337723096,1725987445915,-500.0,0.00026,60]
[337723097,1725987445952,-500.0,0.00026,60]
[337723098,1725987445987,-500.0,0.00026,60]
[337723099,1725987446023,-500.0,0.00026,60]
[337723100,1725987446058,-500.0,0.00026,60]
[337723101,1725987446304,-603.53174816,0.00026,60]
[337723102,1725987446342,-500.0,0.00026,60]
[337723103,1725987446381,-500.0,0.00026,60]
[337723104,1725987446417,-500.0,0.00026,60]
[337723105,1725987446453,-500.0,0.00026,60]
[337723106,1725987446488,-500.0,0.00026,60]
[337723107,1725987446523,-706.35,0.00026,60]
[337723108,1725987446559,-706.35,0.00026,60]
[337723109,1725987446788,-706.35,0.00026,60]
[337723110,1725987446825,-706.35,0.00026,60]
[337723111,1725987446862,-706.35,0.00026,60]
[337723112,1725987446901,-706.35,0.00026,60]
[337723113,1725987446938,-706.35,0.00026,60]
[337723114,1725987446975,-706.35,0.00026,60]
[337723115,1725987447014,-706.35,0.00026,60]
[337723116,1725987447050,-706.35,0.00026,60]
[337723117,1725987447087,-706.35,0.00026,60]
[337723118,1725987447123,-706.35,0.00026,60]
[337723119,1725987447159,-706.35,0.00026,60]
[337723120,1725987447197,-706.35,0.00026,60]
[337723121,1725987447233,-706.35,0.00026,60]
[337723122,1725987447268,-706.35,0.00026,60]
[337723123,1725987447303,-706.35,0.00026,60]
[337723124,1725987447340,-706.35,0.00026,60]
[337723125,1725987447377,-706.35,0.00026,60]
[337723126,1725987447418,-706.35,0.00026,60]
[337723127,1725987447455,-706.35,0.00026,60]
[337723128,1725987447491,-706.35,0.00026,60]
[337723129,1725987447527,-706.35,0.00026,60]
[337723130,1725987447566,-706.56752833,0.00026,60]
[337723131,1725987447606,-500.0,0.00026,60]
[337723132,1725987447645,-500.0,0.00026,60]
[337723133,1725987447684,-500.0,0.00026,60]
[337723134,1725987447724,-500.0,0.00026,60]
[337723135,1725987447764,-500.0,0.00026,60]
[337723136,1725987447803,-500.0,0.00026,60]
[337723137,1725987447841,-500.0,0.00026,60]
[337723138,1725987447879,-500.0,0.00026,60]
[337723139,1725987447917,-500.0,0.00026,60]
[337723140,1725987447954,-419.13949563,0.00026,60]
[337723141,1725987447990,-718.62,0.00026,60]
[337723142,1725987448031,-718.62,0.00026,60]
[337723143,1725987448070,-718.62,0.00026,60]
[337723144,1725987448113,-718.62,0.00026,60]
[337723145,1725987448152,-718.62,0.00026,60]
[337723146,1725987448191,-718.62,0.00026,60]
[337723147,1725987448229,-718.62,0.00026,60]
[337723148,1725987448265,-718.62,0.00026,60]
[337723149,1725987448301,-718.62,0.00026,60]
[337723150,1725987448336,-718.62,0.00026,60]
[337723151,1725987448370,-718.62,0.00026,60]
[337723152,1725987448409,-718.62,0.00026,60]
[337723153,1725987448446,-718.62,0.00026,60]
[337723154,1725987448482,-718.62,0.00026,60]
[337723155,1725987448518,-718.62,0.00026,60]
[337723156,1725987448555,-718.62,0.00026,60]
[337723157,1725987448591,-718.62,0.00026,60]
[337723158,1725987448628,-718.62,0.00026,60]
[337723159,1725987448668,-718.62,0.00026,60]
[337723160,1725987448704,-718.62,0.00026,60]
[337723161,1725987448740,-718.62,0.00026,60]
[337723162,1725987448777,-718.62,0.00026,60]
[337723163,1725987448815,-718.62,0.00026,60]
[337723164,1725987448851,-718.69659121,0.00026,60]
[337723165,1725987448888,-500.0,0.00026,60]
[337723166,1725987448924,-500.0,0.00026,60]
[337723167,1725987448960,-500.0,0.00026,60]
[337723168,1725987448996,-500.0,0.00026,60]
[337723169,1725987449037,-500.0,0.00026,60]
[337723170,1725987449073,-500.0,0.00026,60]
[337723171,1725987449114,-500.0,0.00026,60]
[337723172,1725987449150,-500.0,0.00026,60]
[337723173,1725987449186,-562.61989251,0.00026,60]
[337723174,1725987449223,-765.68,0.00026,60]
[337723175,1725987449260,-765.68,0.00026,60]
[337723176,1725987449297,-765.68,0.00026,60]
[337723177,1725987449337,-765.68,0.00026,60]
[337723178,1725987449376,-765.68,0.00026,60]
[337723179,1725987449415,-765.68,0.00026,60]
[337723180,1725987449451,-765.68,0.00026,60]
[337723181,1725987449488,-765.68,0.00026,60]
[337723182,1725987449525,-765.68,0.00026,60]
[337723183,1725987449565,-765.68,0.00026,60]
[337723184,1725987449603,-765.68,0.00026,60]
[337723185,1725987449640,-765.68,0.00026,60]
[337723186,1725987449676,-765.68,0.00026,60]
[337723187,1725987449712,-765.68,0.00026,60]
[337723188,1725987449748,-765.68,0.00026,60]
[337723189,1725987449784,-765.68,0.00026,60]
[337723190,1725987449820,-765.68,0.00026,60]
[337723191,1725987449857,-765.68,0.00026,60]
[337723192,1725987449899,-765.68,0.00026,60]
[337723193,1725987449936,-765.68,0.00026,60]
[337723194,1725987449972,-765.68,0.00026,60]
[337723195,1725987450008,-765.68,0.00026,60]
[337723196,1725987450043,-765.68,0.00026,60]
[337723197,1725987450080,-765.83126221,0.00026,60]
[337723198,1725987450119,-561.82,0.00026,60]
[337723199,1725987450163,-561.82,0.00026,60]
[337723200,1725987450198,-561.82,0.00026,60]
[337723201,1725987450233,-561.82,0.00026,60]
[337723202,1725987450268,-561.82,0.00026,60]
[337723203,1725987450302,-561.82,0.00026,60]
[337723204,1725987450338,-561.82,0.00026,60]
[337723205,1725987450373,-561.82,0.00026,60]
[337723206,1725987450410,-561.82,0.00026,60]
[337723207,1725987450444,-561.82,0.00026,60]
[337723208,1725987450479,-561.82,0.00026,60]
[337723209,1725987450513,-561.82,0.00026,60]
[337723210,1725987450549,-561.82,0.00026,60]
[337723211,1725987450712,-561.82,0.00026,60]
[337723212,1725987450784,-561.82,0.00026,60]
[337723213,1725987450823,-561.82,0.00026,60]
[337723214,1725987450858,-561.82,0.00026,60]
[337723215,1725987450892,-561.82,0.00026,60]
[337723216,1725987450927,-500.0,0.00026,60]
[337723217,1725987450961,-561.82,0.00026,60]
[337723218,1725987450995,-561.82,0.00026,60]
[337723219,1725987451035,-561.82,0.00026,60]
[337723220,1725987451071,-561.82,0.00026,60]
[337723221,1725987451109,-561.82,0.00026,60]
[337723222,1725987451143,-562.0050803,0.00026,60]
[337723223,1725987451179,-632.7,0.00026,60]
[337723224,1725987451216,-632.7,0.00026,60]
[337723225,1725987451253,-632.7,0.00026,60]
[337723226,1725987451292,-632.7,0.00026,60]
[337723227,1725987451330,-632.7,0.00026,60]
[337723228,1725987451368,-632.7,0.00026,60]
[337723229,1725987451406,-632.7,0.00026,60]
[337723230,1725987451441,-632.7,0.00026,60]
[337723231,1725987451475,-632.7,0.00026,60]
[337723232,1725987451511,-632.7,0.00026,60]
[337723233,1725987451546,-632.7,0.00026,60]
[337723234,1725987451583,-632.7,0.00026,60]
[337723235,1725987451619,-632.7,0.00026,60]
[337723236,1725987451656,-632.7,0.00026,60]
[337723237,1725987451691,-632.7,0.00026,60]
[337723238,1725987451725,-632.7,0.00026,60]
[337723239,1725987451759,-632.7,0.00026,60]
[337723240,1725987451795,-632.7,0.00026,60]
[337723241,1725987451829,-632.7,0.00026,60]
[337723242,1725987451864,-632.7,0.00026,60]
[337723243,1725987451898,-632.7,0.00026,60]
[337723244,1725987451931,-632.7,0.00026,60]
[337723245,1725987451966,-632.7,0.00026,60]
[337723246,1725987452004,-632.85699647,0.00026,60]
[337723247,1725987452039,-500.0,0.00026,60]
[337723248,1725987452074,-500.0,0.00026,60]
[337723249,1725987452111,-500.0,0.00026,60]
[337723250,1725987452144,-500.0,0.00026,60]
[337723251,1725987452177,-500.0,0.00026,60]
[337723252,1725987452210,-500.0,0.00026,60]
[337723253,1725987452243,-500.0,0.00026,60]
[337723254,1725987452276,-500.0,0.00026,60]
[337723255,1725987452308,-417.47290402,0.00026,60]
[337723256,1725987452343,-315.55456501,0.00026,60]
[337723257,1725987452376,-894.25,0.00026,60]
[337723258,1725987452408,-894.25,0.00026,60]
[337723259,1725987452440,-894.25,0.00026,60]
[337723260,1725987452472,-894.25,0.00026,60]
[337723261,1725987452505,-894.25,0.00026,60]
[337723262,1725987452538,-894.25,0.00026,60]
[337723263,1725987452571,-894.25,0.00026,60]
[337723264,1725987452604,-894.25,0.00026,60]
[337723265,1725987452637,-500.0,0.00026,60]
[337723266,1725987452670,-894.25,0.00026,60]
[337723267,1725987452704,-500.0,0.00026,60]
[337723268,1725987452737,-500.0,0.00026,60]
[337723269,1725987452771,-894.25,0.00026,60]
[337723270,1725987452804,-894.25,0.00026,60]
[337723271,1725987452838,-894.25,0.00026,60]
[337723272,1725987452871,-894.25,0.00026,60]
[337723273,1725987452904,-894.25,0.00026,60]
[337723274,1725987452936,-500.0,0.00026,60]
[337723275,1725987452969,-500.0,0.00026,60]
[337723276,1725987453004,-500.0,0.00026,60]
[337723277,1725987453039,-500.0,0.00026,60]
[337723278,1725987453074,-894.25,0.00026,60]
[337723279,1725987453109,-894.25,0.00026,60]
[337723280,1725987453143,-894.25,0.00026,60]
[337723281,1725987453179,-894.25,0.00026,60]
[337723282,1725987453212,-894.25,0.00026,60]
[337723283,1725987453245,-894.25,0.00026,60]
[337723284,1725987453280,-500.0,0.00026,60]
[337723285,1725987453313,-894.25,0.00026,60]
[337723286,1725987453349,-500.0,0.00026,60]
[337723287,1725987453384,-894.25,0.00026,60]
[337723288,1725987453432,-500.0,0.00026,60]
[337723289,1725987453474,-894.25,0.00026,60]
[337723290,1725987453513,-500.0,0.00026,60]
[337723291,1725987453552,-894.40097924,0.00026,60]
[337723292,1725987453592,-500.0,0.00026,60]
[337723293,1725987453633,-500.0,0.00026,60]
[337723294,1725987453674,-500.0,0.00026,60]
[337723295,1725987453716,-500.0,0.00026,60]
[337723296,1725987453758,-500.0,0.00026,60]
[337723297,1725987453798,-500.0,0.00026,60]
[337723298,1725987453839,-500.0,0.00026,60]
[337723299,1725987453881,-500.0,0.00026,60]
[337723300,1725987453922,-500.0,0.00026,60]
[337723301,1725987453964,-500.0,0.00026,60]
[337723302,1725987454008,-500.0,0.00026,60]
[337723303,1725987454050,-500.0,0.00026,60]
[337723304,1725987454092,-209.28685726,0.00026,60]
[337723305,1725987454133,-500.0,0.00026,60]
[337723306,1725987454174,-500.0,0.00026,60]
[337723307,1725987454214,-500.0,0.00026,60]
[337723308,1725987454252,-500.0,0.00026,60]
[337723309,1725987454289,-500.0,0.00026,60]
[337723310,1725987454328,-500.0,0.00026,60]
[337723311,1725987454369,-500.0,0.00026,60]
[337723312,1725987454409,-500.0,0.00026,60]
[337723313,1725987454449,-500.0,0.00026,60]
[337723314,1725987454490,-500.0,0.00026,60]
[337723315,1725987454531,-500.0,0.00026,60]
[337723316,1725987454729,-500.0,0.00026,60]
[337723317,1725987454773,-500.0,0.00026,60]
[337723318,1725987454810,-500.0,0.00026,60]
[337723319,1725987454846,-500.0,0.00026,60]
[337723320,1725987454881,-500.0,0.00026,60]
[337723321,1725987454918,-500.0,0.00026,60]
[337723322,1725987454954,-500.0,0.00026,60]
[337723323,1725987454990,-500.0,0.00026,60]
[337723324,1725987455029,-500.0,0.00026,60]
[337723325,1725987455065,-500.0,0.00026,60]
[337723326,1725987455107,-186.98539927,0.00026,60]
[337723327,1725987455142,-500.0,0.00026,60]
[337723328,1725987455176,-536.03909744,0.00026,60]
[337723329,1725987455209,-500.0,0.00026,60]
[337723330,1725987455242,-500.0,0.00026,60]
[337723331,1725987455275,-500.0,0.00026,60]
[337723332,1725987455310,-500.0,0.00026,60]
[337723333,1725987455346,-500.0,0.00026,60]
[337723334,1725987455383,-500.0,0.00026,60]
[337723335,1725987455420,-500.0,0.00026,60]
[337723336,1725987455458,-500.0,0.00026,60]
[337723337,1725987455494,-500.0,0.00026,60]
[337723338,1725987455528,-500.0,0.00026,60]
[337723339,1725987455564,-500.0,0.00026,60]
[337723340,1725987455599,-500.0,0.00026,60]
[337723341,1725987455635,-500.0,0.00026,60]
[337723342,1725987455671,-500.0,0.00026,60]
[337723343,1725987455708,-500.0,0.00026,60]
[337723344,1725987455745,-269.14909716,0.00026,60]
[337723345,1725987455784,-500.0,0.00026,60]
[337723346,1725987455821,-500.0,0.00026,60]
[337723347,1725987455857,-500.0,0.00026,60]
[337723348,1725987455894,-500.0,0.00026,60]
[337723349,1725987455929,-500.0,0.00026,60]
[337723350,1725987455965,-500.0,0.00026,60]
[337723351,1725987456001,-425.0218844,0.00026,60]
[337723352,1725987456039,-500.0,0.00026,60]
[337723353,1725987456075,-561.69,0.00026,60]
[337723354,1725987456115,-214.05865258,0.00026,60]
[337723355,1725987456151,-500.0,0.00026,60]
[337723356,1725987456188,-500.0,0.00026,60]
[337723357,1725987456222,-500.0,0.00026,60]
[337723358,1725987456257,-500.0,0.00026,60]
[337723359,1725987456293,-164.50099141,0.00026,60]
[337723360,1725987456327,-587.65,0.00026,60]
[337723361,1725987456361,-587.65,0.00026,60]
[337723362,1725987456396,-587.65,0.00026,60]
[337723363,1725987456432,-587.65,0.00026,60]
[337723364,1725987456466,-587.65,0.00026,60]
[337723365,1725987456500,-587.65,0.00026,60]
[337723366,1725987456534,-587.65,0.00026,60]
[337723367,1725987456568,-587.65,0.00026,60]
[337723368,1725987456602,-587.65,0.00026,60]
[337723369,1725987456638,-587.65,0.00026,60]
[337723370,1725987456684,-587.65,0.00026,60]
[337723371,1725987456721,-587.65,0.00026,60]
[337723372,1725987456757,-587.65,0.00026,60]
[337723373,1725987456792,-587.65,0.00026,60]